Workbook

Sheet Sheet1
A1: 附件
A2: 贵州省2022年重点民间投资项目表
K3: 单位：万元
A4: 序号 | B4: 项目名称 | C4: 项目所在地 | D4: 所属行业 | E4: 建设内容及规模 | F4: 已完成前期工作情况 | G4: 项目开工时间（拟开工时间） | H4: 项目总投资 | J4: 2022年计划完成投资 | K4: 项目单位 | L4: 备注
I5: 已引入民间资本
A6: 合计：2500个 | H6: =H7+H271+H569+H865+H1160+H1453+H1726+H1886+H2185+H2489 -> 201655336.6 | I6: =I7+I271+I569+I865+I1160+I1453+I1726+I1886+I2185+I2489 -> 99095332.49 | J6: =J7+J271+J569+J865+J1160+J1453+J1726+J1886+J2185+J2489 -> 42141062.6
A7: 一、贵阳市(263个) | H7: =SUM(H8:H270) -> 49334061.27 | I7: =SUM(I8:I270) -> 28843575.52 | J7: =SUM(J8:J270) -> 5914906.78
A8: 1 | B8: 云岩区麓山城市综合体 | C8: 贵阳市云岩区 | D8: 房地产业 | E8: 建筑面积约108.1万平方米，建设商业、住宅、配套用房及地下车库。 | F8: 已完成 | G8: 2018年6月 | H8: 896000 | I8: 751341 | J8: 50000 | K8: 贵阳广晟鑫德房地产开发有限公司
A9: 2 | B9: 云岩区省教育厅及周边棚户区改造项目 | C9: 贵阳市云岩区 | D9: 棚户区改造 | E9: 建筑面积22.4万平方米，建设商业、住宅、公寓、办公、停车场及相关配套设施。 | F9: 已完成 | G9: 2020-06-01 | H9: 230000 | I9: 79796 | J9: 10000 | K9: 贵阳恒峰房地产开发有限公司
A10: 3 | B10: 云岩区渔安安井温泉旅游城J01组团城市综合体 | C10: 贵阳市云岩区 | D10: 房地产业 | E10: 建筑面积37.51万平方米，建设商业、住宅、幼儿园、地下停车场等及相关配套设施。 | F10: 已完成 | G10: 2020-05-01 | H10: 276000 | I10: 146702 | J10: 30000 | K10: 中天城投集团（贵阳）河东开发建设有限公司
A11: 4 | B11: 贵阳云岩吾悦广场项目 | C11: 贵阳市云岩区 | D11: 房地产业 | E11: 建筑面积约75万平方米，建设商业、住宅、配套用房及地下车库。 | F11: 已完成 | G11: 2021-05-01 | H11: 750000 | I11: 490490 | J11: 100000 | K11: 贵州新城鸿裕房地产开发有限公司
A12: 5 | B12: 海伦堡·天悦府 | C12: 贵阳市云岩区 | D12: 房地产业 | E12: 建筑面积18.45万平方米，建筑高层、洋房、幼儿园及配套商业。 | F12: 已完成 | G12: 2021-04-01 | H12: 180000 | I12: 98128 | J12: 40000 | K12: 贵阳海玺房地产开发有限公司
A13: 6 | B13: 年产120万方混凝土搅拌楼及堆料仓扩建增加30万立方混凝土生产线及堆料仓建设项目 | C13: 贵阳市云岩区 | D13: 制造业 | E13: 总建筑面积5500平方米，其中2条HZS180型混凝土生产线及搅拌楼建设面积2000平方米，原材料堆料仓建筑面积3500平方米，建筑内容包括2条HZS180型混凝土生产线安装和搅拌楼的修建及所需原材料堆料仓的建设。 | F13: 已完成 | G13: 2021-06-01 | H13: 5000 | I13: 2700 | J13: 2300 | K13: 贵州大远混凝土有限公司
A14: 7 | B14: 贵阳万达小关项目 | C14: 贵阳市云岩区 | D14: 房地产业 | E14: 建筑面积110万平方米，建设商业住宅、配套设施及地下室。 | F14: 已完成 | G14: 2021-08-01 | H14: 731500 | I14: 290977 | J14: 100000 | K14: 贵阳云岩万达地产开发有限公司
A15: 8 | B15: 糖浆车间及盐酸托莫西汀口服溶液技术改造 | C15: 贵阳市云岩区 | D15: 制造业 | E15: 通过对现有糖浆剂生产线进行优化改造形成一条全新的糖浆剂生产线，新增一条盐酸托莫西汀口服溶液生产线，新增5套空调系统、配料系统、清洗干燥一体机、压缩空气冷干机等重大设备。 | F15: 已完成 | G15: 2021-08-01 | H15: 9200 | I15: 1466 | J15: 3000 | K15: 贵州益佰制药股份有限公司
A16: 9 | B16: 中天未来方舟可再生能源集中供能项目 | C16: 贵阳市云岩区 | D16: 市政设施项目 | E16: 7座可再生能源集中供能机电工程，内容包括：（1）能源站机电工程；（2）一次管网输配系统。 | F16: 已完成 | G16: 2021-09-01 | H16: 17000 | I16: 1977 | J16: 500 | K16: 中节能（贵州）建筑能源有限公司
A17: 10 | B17: 枣山路贵铁棚户区成片改造项目 | C17: 贵阳市云岩区 | D17: 棚户区改造 | E17: 建筑面积19.86万平方米，建设住宅、商业、地下车库及相关配套设施。 | F17: 已完成 | G17: 2021-11-01 | H17: 196379 | I17: 4617 | J17: 20000 | K17: 贵州金路房地产开发有限责任公司
A18: 11 | B18: 恩祥万科观山甲第 | C18: 贵阳市云岩区 | D18: 房地产业 | E18: 建筑面积20.3万平米，建设商业、高层住宅、配套、地下车库及配套设施。 | F18: 已完成 | G18: 2021-11-01 | H18: 165000 | I18: 9983 | J18: 60000 | K18: 贵州恩祥建设有限公司
A19: 12 | B19: 万达瑞华商业综合体 | C19: 贵阳市云岩区 | D19: 房地产业 | E19: 建筑面积20.2万平方米，建设酒店、商业及配套设施。 | F19: 已备案、已完成用地手续 | G19: 2022-05-01 | H19: 204162.2 | I19: 30000 | J19: 30000 | K19: 贵阳云岩万达实业有限公司
A20: 13 | B20: 云岩区冒沙井地块城市更新建设项目 | C20: 贵阳市云岩区 | D20: 棚户区改造 | E20: 项目净建设用地面积59243.00平方米.计划总建筑面积为316953.00平方米,其中计容面积244673.59 平方米,不计容面积72279.41平方米.建设内容包括住 宅、汽车文化广场、地下车库，以及配电房、道路、绿化景观等公建配套设施。 | F20: 已备案，签订土地合同 | G20: 2022-06-01 | H20: 262607 | I20: 0 | J20: 50000 | K20: 贵阳云岩贵沙井城市更新项目建设有限公司
A21: 14 | B21: 金宇紫林广场C座棚户区改造项目 | C21: 贵阳市云岩区 | D21: 棚户区改造 | E21: 该项目地块建筑用地面积为4524.89平方米，含C座一个单体，总建筑建筑面积为54031平方米，地上住宅面积31375.7平方米，裙房面积2655.6平方米（物业及公建配套设施用房），地下建筑面积20000平方米，其中地下商业面积8000平方米，地下停车场面积12000平方米。地下5层，地上31层，高度92.1米，容积率7.5。其中：改造棚户区104户（其中货币安置60户、实物安置44户），改造总建筑面积5924.11平方米，新建面积48106.89平方米。 | F21: 已备案，完成规划手续 | G21: 2022-09-01 | H21: 8000 | I21: 0 | J21: 3000 | K21: 贵州益弘安房地产开发有限公司
A22: 15 | B22: 贵阳圣泉荟 | C22: 贵阳市云岩区 | D22: 房地产业 | E22: 占地3724平方米，总建筑面积约21664平方米，主要建设内容为平层公寓。 | F22: 已备案，完成规划手续正在办理工规证 | G22: 2022-09-01 | H22: 15000 | I22: 5000 | J22: 7000 | K22: 贵阳圣泉荟房地产开发有限公司
A23: 16 | B23: 宝山南路周边棚户区改造项目（贵阳印象） | C23: 贵阳市南明区 | D23: 棚户区改造 | E23: 宝山南路周边棚户区改造项目项目占地8.18万方，约122.7亩，容积率为4.64，扣除十八中及其地下室范围，项目总建筑面积约47.89万平方米（地上建筑面积35.86万方、地下建筑面积12.03万方、架空层与避难层0.46万方）。 | F23: 已完成 | G23: 2021-04-01 | H23: 60000 | I23: 60000 | J23: 16000 | K23: 贵州恒丰佳源房地产开有限公司
A24: 17 | B24: 南明区融创·国宾道（城市综合体一期） | C24: 贵阳市南明区 | D24: 房地产业 | E24: 总占地面积为141186.8平方米，总建筑面积约78万平方米，建设内容包括住宅、商业、学校等相关配套设施。 | F24: 已完成 | G24: 2020-05-01 | H24: 65664 | I24: 65664 | J24: 7000 | K24: 贵州融创展扬房地产开发有限公司 潘永锋 18786099027
A25: 18 | B25: 贵州文化广场（河滨剧场）棚户区改造项目 | C25: 贵阳市南明区 | D25: 棚户区改造 | E25: 净用地面积100339平方米，规划总建筑面积1388696.3平方米，其中计容建面971262.27平方米，建设含商业、办公、文化产业、酒店、住宅等多种形态的大型城市综合体及文化演艺中心。 | F25: 已完成 | G25: 2020-08-01 | H25: 173160 | I25: 173160 | J25: 6000 | K25: 中天城投集团贵州文化广场开发建设有限公司
A26: 19 | B26: 南明区星云家电城棚户区改造项目 | C26: 贵阳市南明区 | D26: 棚户区改造 | E26: 建筑面积77.4万平方米，包含住宅、商业、公寓、停车场及其配套设施。 | F26: 已完成 | G26: 2016-10-01 | H26: 105000 | I26: 105000 | J26: 5000 | K26: 贵州恒丰伟业房地产开发有限公司 宋云峰 13985199951
A27: 20 | B27: 南明区省冶金研究所及周边地块棚户区改造项目（城市综合体） | C27: 贵阳市南明区 | D27: 棚户区改造 | E27: 总用地面积38502平方米，总建筑面积384350.36平方米，建设内容包括住宅、商业、公寓以及配套设施等，项目车位共计2035个，住宅总户数1173户，建筑总4栋高层（1栋为公寓，3栋商住）。项目棚户区改造公产和私产房屋及附属设施共计849户，改造面积约为74356.43平方米，全部采用货币安置，安置费为24亿。 | F27: 已完成 | G27: 2019-08-01 | H27: 55618.4 | I27: 55618.4 | J27: 4000 | K27: 贵州谦和房地产开发有限公司
A28: 21 | B28: 南明区金地悦峰（城市综合体）项目 | C28: 贵阳市南明区 | D28: 房地产业 | E28: 项目规划用地面积107078.67平方米（约160.618亩）；总建筑面积约543000平方米，其中计容面积约406633平方米，不计容面积约136367平方米。建设内容包括住宅及商业配套等。 | F28: 已完成 | G28: 2019-07-01 | H28: 37900 | I28: 37900 | J28: 4000 | K28: 贵阳金地尚呈房地产开发有限公司
A29: 22 | B29: 南明区融创﹒九璟湾（城市综合体） | C29: 贵阳市南明区 | D29: 房地产业 | E29: 项目总用地面积124051.8平方米（净用地面积84359.5平方米），总建筑面积约43.6万平方米（其中地上面积约32.6万平方米，地下面积约11万平方米）。 | F29: 已完成 | G29: 2020-07-01 | H29: 37860.6 | I29: 37860.6 | J29: 4000 | K29: 贵阳融创宸扬房地产开发有限公司
A30: 23 | B30: 南明区中天·悦曦府(城市综合体) | C30: 贵阳市南明区 | D30: 房地产业 | E30: 建筑面积43万平方米，居住、商业中心、酒店、市政交通配套、文化教育、生态旅游及其配套设施于一体的大型城市综合体。 | F30: 已完成 | G30: 2018-10-01 | H30: 28972.031 | I30: 28972.031 | J30: 2000 | K30: 贵阳南明中天城投房地产开发有限公司
A31: 24 | B31: 太慈桥商住楼项目（万科翡翠滨江） | C31: 贵阳市南明区 | D31: 房地产业 | E31: 建筑面积24万平方米，建设住宅、商业7750平方米、学校等相关配套设施。 | F31: 已完成 | G31: 2018-07-01 | H31: 20000 | I31: 20000 | J31: 2000 | K31: 贵州中凯瑞房地产开发有限公司
A32: 25 | B32: 南明区富源同坐棚户区改造项目 | C32: 贵阳市南明区 | D32: 棚户区改造 | E32: 建筑面积39.74万平方米，建设高层住宅、学校、安置房及相关配套设施。 | F32: 已完成 | G32: 2019-07-01 | H32: 17430.391 | I32: 17430.391 | J32: 2000 | K32: 贵州英发房地产开发有限公司
A33: 26 | B33: 锦汇·公园天厦项目 | C33: 贵阳市南明区 | D33: 房地产业 | E33: 项目占地面积24596.23平方米，总建筑面积168220.67平方米，建筑内容包括住宅、商业、地下停车场等相关配套设施。 | F33: 已完成 | G33: 2021-03-01 | H33: 5900 | I33: 5900 | J33: 1200 | K33: 贵州天厦房地产开发有限公司
A34: 27 | B34: 贵阳市南明区花果园彭家湾五里冲棚户区改造项目 | C34: 贵阳市南明区 | D34: 棚户区改造 | E34: 占地面积约5000亩，建筑面积约1830万平方米，包括商业住宅、写字楼及相关配套基础设施。 | F34: 已完成 | G34: 2010-08-01 | H34: 1341000 | I34: 1341000 | J34: 1000 | K34: 贵阳宏立城房地产开发有限公司
A35: 28 | B35: 南明区理想城（见龙洞路经济适用房）建设项目 | C35: 贵阳市南明区 | D35: 房地产业 | E35: 建筑面积92万平方米，住宅及配套设施。 | F35: 已完成 | G35: 2015-08-01 | H35: 31116 | I35: 31116 | J35: 1000 | K35: 贵州林恒泰房地产开发有限公司
A36: 29 | B36: 云上绿舟 | C36: 贵阳市南明区 | D36: 棚户区改造 | E36: 项目建设用地面积9122.1平方米，建筑面积38298.7平方米，建设内容包括：市政道路、商业住宅、办公楼以及相关配套设施。 | F36: 已完成 | G36: 2021-05-01 | H36: 5000 | I36: 5000 | J36: 800 | K36: 贵州欣汇盛源房地产开发有限公司
A37: 30 | B37: 城南酒店综合体项目 | C37: 贵阳市花溪区 | D37: 旅游 | E37: 项目规划用地面积32871平方米，总建筑面积约5.2万平方米，其中地上计容总建筑面积约3.1万平方米，（包含裙楼约1.7万平方米，A栋约1万平方米，B栋约0.4万平方米），地下建筑面积约2.1万平方米。包含酒店客房、酒店公共部分、商铺、宴会厅及会议室、康体娱乐中心、后勤及管理用房、停车位等酒店配套设施。 | F37: 已完成 | G37: 2021-04-01 | H37: 58970 | I37: 22532 | J37: 16000 | K37: 贵阳城南投资开发（集团）有限公司
A38: 31 | B38: 碧桂园印象花溪 | C38: 贵阳市花溪区 | D38: 房地产业 | E38: 总建筑面积约152万平方米，主要建设住宅、商业、幼儿园、学校及相关基础配套设施等。 | F38: 已完成 | G38: 2018-06-01 | H38: 850000 | I38: 569555 | J38: 12000 | K38: 贵州恒方房地产开发有限公司
A39: 32 | B39: 美的国宾府项目 | C39: 贵阳市花溪区 | D39: 房地产业 | E39: 新建商住楼及配设施。 | F39: 已完成 | G39: 2018-12-01 | H39: 687550 | I39: 451550 | J39: 20000 | K39: 贵阳美的新时代房地产发展有限公司
A40: 33 | B40: 溪谷（童话故事） | C40: 贵阳市花溪区 | D40: 房地产业 | E40: 新建商住楼及配设施。 | F40: 已完成 | G40: 2018-12-01 | H40: 120000 | I40: 105342 | J40: 5000 | K40: 贵阳思源房地产开发有限公司
A41: 34 | B41: 花溪碧桂园·澜山 | C41: 贵阳市花溪区 | D41: 房地产业 | E41: 总建筑面积185702.49平方米，住宅、商业、车库、绿化、幼儿园、公租房、公厕、消防站，具体建筑规模及内容以规划部门核定为准。 | F41: 已完成 | G41: 2018-12-01 | H41: 150000 | I41: 73981 | J41: 8000 | K41: 贵阳花溪碧桂园德胜置业有限公司
A42: 35 | B42: 大堂百年奥特莱斯广场 | C42: 贵阳市花溪区 | D42: 旅游 | E42: 总建筑面积250000平方米，主要建设集酒店，办公，公寓，金融，休闲娱乐，超市，电竞城，日化百货，教育培训，文化体育，传媒，旅游，零售批发，餐饮，儿童业态等为一体的商业综合体。 | F42: 已完成 | G42: 2021-12-01 | H42: 110000 | I42: 29426 | J42: 15000 | K42: 贵阳金石坤城置业有限公司
A43: 36 | B43: 印象商贸港 | C43: 贵阳市花溪区 | D43: 仓储物流 | E43: 项目总建筑面积约为11万平方米,主要建设商务办公中心、水产副食品批发市场，零售商业功能的商铺、商场、超市、公寓及相关配套设施。 | F43: 已完成 | G43: 2021-12-01 | H43: 80000 | I43: 55620 | J43: 4000 | K43: 贵州鑫联城房地产开发有限公司
A44: 37 | B44: 贵广工业城 | C44: 贵阳市花溪区 | D44: 制造业 | E44: 总建筑面积约40余万平方米。主要建设配备齐全的标准现代化厂房，集合文化旅游商品加工示范区、包装产业区、智能家居区等配套设施建设。 | F44: 已完成 | G44: 2021-04-01 | H44: 41200 | I44: 0 | J44: 11200 | K44: 贵州贵广工业发展有限公司
A45: 38 | B45: 贵阳市花溪区高坡乡云顶暗夜暮曙景区提升改造项目 | C45: 贵阳市花溪区 | D45: 旅游 | E45: 项目占地面积约1286673平米（约1930亩），总建筑面积约6325平方米，主要建设内容为生态草坪修复、景区园路提升、照明工程、景区综合管网、服务中心加固修缮、装修及设备采购、景区围墙提升、智慧景区系统安装、自然研学基地、景区配套道路、户外体验设备安装、生态停车场等。 | F45: 已完成 | G45: 2021年10月 | H45: 46000 | I45: 0 | J45: 26000 | K45: 贵阳花溪旅游文化投资开发经营有限公司
A46: 39 | B46: 花溪客运站城市更新项目 | C46: 贵阳市花溪区 | D46: 棚户区改造 | E46: 项目为拆除重建及小微改造。总建筑面积约13万平方米，其中小微改造部分拟对小区建筑外立面、消防、基础设施等内容进行提升改造，拆除重建部分主要包含车站、公寓、地下室及相关配套等。 | F46: 已办理备案 | G46: 2022-08-01 | H46: 128688 | I46: 0 | J46: 48874.21 | K46: 贵阳花溪城南城市建设运营有限公司
A47: 40 | B47: 贵阳吉润宏能源科技有限公司思杨路加油站 | C47: 贵阳市花溪区 | D47: 市政设施项目 | E47: 用地总面积约3100平方米，建设站房、加油棚及生产生活辅助用房等，总建筑面积约1500平方米，其中罩棚约600平方米，站房及附属用房900平方米，储油罐4个。 | F47: 已办理备案 | G47: 2022-05-01 | H47: 5000 | I47: 0 | J47: 5000 | K47: 贵阳吉润宏能源科技有限公司
A48: 41 | B48: 特色饮料生产基地建设项目 | C48: 贵阳市花溪区 | D48: 制造业 | E48: 项目建设规模为年产25.7万吨饮用天然矿泉水，形成年产1000万桶桶装水、900万件（箱）瓶装水产品。 1. 购置饮用天然矿泉水产品生产线2条。其中：购置3000桶/h桶装矿泉水生产线1条；购置40000瓶/h瓶装水生产线1条；配置40t/h水处理系统以及辅助生产设施。 2. 新建生产、辅助及服务用房41252m2。其中：建设1栋综合厂房26298m2；1栋综合辅助用房14954m2。 3. 配套相应的给排水、供电、消防、道路及绿化等设施。 | F48: 已完成 | G48: 2016年12月 | H48: 22564 | I48: 18501 | J48: 4120 | K48: 贵州北极熊实业有限公司
A49: 42 | B49: 中天溪湖 | C49: 贵阳市花溪区 | D49: 房地产业 | E49: 新建商住楼及配设施。 | F49: 已完成 | G49: 2021-06-01 | H49: 120000 | I49: 35332 | J49: 20000 | K49: 贵州中天溪湖房地产开发有限公司
A50: 43 | B50: 久安绿色生态文化陵园（骑龙山人文生态纪念园二期） | C50: 贵阳市花溪区 | D50: 文化 | E50: 该项目围绕城镇性公益性公墓及经营性公墓共计约260亩，拟建墓位约25260个。 | F50: 已完成 | G50: 2021-11-01 | H50: 23845 | I50: 0 | J50: 8000 | K50: 贵阳城发壹盛合生态开发有限公司
A51: 44 | B51: 贵阳市花溪区樟宜翠湾项目 | C51: 贵阳市花溪区 | D51: 房地产业 | E51: 项目总占地面积：215.03亩，总建筑面积：约465839.2平方米，包含：商业用房，住宅，学校及相关设施。 | F51: 已办理备案 | G51: 2022-03-01 | H51: 350000 | I51: 0 | J51: 200000 | K51: 贵州万加誉房地产开发有限公司
A52: 45 | B52: 城南·云上项目（R1地块） | C52: 贵阳市花溪区 | D52: 房地产业 | E52: 总建筑面积约19万平方米，其中一期约12万平方米，二期约7万平方米，包含幼儿园、地下停车场。 | F52: 已办理备案 | G52: 2022-09-01 | H52: 108502 | I52: 0 | J52: 20000 | K52: 贵阳花溪城南置业有限公司
A53: 46 | B53: 中铁阅花溪项目 | C53: 贵阳市花溪区 | D53: 房地产业 | E53: 项目总建筑面积约1726000平方米，其中：住宅约1120000平方米，商业商务设施约106000平方米，公租房、幼儿园等配套设施约50000平方米，架空及地下空间约450000平方米；以及其他配套设施建设。 | F53: 已办理备案 | G53: 2022年2月 | H53: 1520000 | I53: 0 | J53: 81951 | K53: 贵阳中铁澄丰置业有限公司
A54: 47 | B54: 花溪公园配套服务项目（乡贤里） | C54: 贵阳市花溪区 | D54: 旅游 | E54: 项目占地面积48000平米（72亩），总建筑面积约16500平方米，主要建设内容为恢复花溪公园原清晖楼、借花草堂、乡贤祠等人文、历史建筑，并配套建设花溪公园游客服务中心、公共厕所、医疗救助站、管理办公用房、广播室、监控室等旅游配套设施，地下空间新建停车场。 | F54: 已完成 | G54: 2021年11月 | H54: 26000 | I54: 0 | J54: 26000 | K54: 贵阳花溪旅游文化投资开发经营有限公司
A55: 48 | B55: 金科·凤鸣G(20)037-039地块 | C55: 贵阳市花溪区 | D55: 房地产业 | E55: 新建商住楼及配设施。 | F55: 已完成 | G55: 2021-12-01 | H55: 717393 | I55: 259479 | J55: 30000 | K55: 贵阳花溪金科房地产开发有限公司
A56: 49 | B56: 花溪区贵阳恒晨饲料公司新厂建设项目 | C56: 贵阳市花溪区 | D56: 制造业 | E56: 项目总建筑面积约12000平方米，主要设施有车间、成品库房、原料库房、圆筒仓、畜禽料生产线2套、反刍料生产线1套、预混料生产线1套等。 | F56: 已办理备案 | G56: 2022-04-01 | H56: 7500 | I56: 0 | J56: 3300 | K56: 贵阳恒晨饲料有限公司
A57: 50 | B57: 贵阳市花溪区表面处理产业园 | C57: 贵阳市花溪区 | D57: 制造业 | E57: 总建筑面积约为260000平方米，其中：生产用房约210000平方米，配套设施及其他约50000平方米（含危险化学品仓库约2000平方米），及周边区域基础设施完善。 | F57: 已完成 | G57: 2021-11-01 | H57: 100000 | I57: 0 | J57: 25000 | K57: 贵阳花溪产业投资（集团）有限公司
A58: 51 | B58: 花溪区龙凤胎饲料生产及研发 | C58: 贵阳市花溪区 | D58: 农业 | E58: 该项目总建筑面积15876.68平方米；建设内容包含生产车间，办公楼，换工房；原料库；成品库等。 | F58: 已办理备案 | G58: 2022-09-01 | H58: 10000 | I58: 0 | J58: 6500 | K58: 贵阳龙凤胎饲料有限公司
A59: 52 | B59: 国家石油天然气大流量计量站贵阳分站 | C59: 贵阳市花溪区 | D59: 市政设施项目 | E59: 总建筑面积约7500平方米，建设内容主要包括工作级标准装置、次级标准装置，配套过滤、调压、调流、综合办公楼等设施建设,检定能力700台/年。 | F59: 已完成 | G59: 2020-09-01 | H59: 28736 | I59: 11709 | J59: 16556 | K59: 中国石油天然气股份有限公司西南管道油气计量中心
A60: 53 | B60: 贵阳市花溪区数字农业建设项目 | C60: 贵阳市花溪区 | D60: 农业 | E60: 总建筑规模约88000平方米，包含生产用房、仓库、冷库、管理用房、门卫等，主要进行食用菌养殖培育。 | F60: 已完成 | G60: 2020-08-01 | H60: 37443 | I60: 15533 | J60: 21910 | K60: 贵阳花溪城市建设投资发展有限公司
A61: 54 | B61: 花溪区十字街及周边区域新型城镇化暨城市更新项目 | C61: 贵阳市花溪区 | D61: 棚户区改造 | E61: 项目总用地面积约189亩,分别为新建、拆除重建及老旧小区改造。其中旧改部分拟对小区建筑外立面、消防、基础设施等内容进行提升改造，疏通背街小巷，完善人行设施，同时对乱搭乱建构筑物进行拆除。拆除重建部分用地面积约25.59亩，总建筑面积约5.96万平方米，拟分两期实施，建设内容包括商业及地下室。新建部分为花溪区十字街周边区域通行基础设施完善，总长约2616米。 | F61: 已完成 | G61: 2021-12-01 | H61: 219444.49 | I61: 0 | J61: 100000 | K61: 贵阳花溪筑城城市建设运营有限公司
A62: 55 | B62: 乌当区贵州宜大鲜生10000吨速冻食品生产加工基地 | C62: 贵阳市乌当区 | D62: 农业 | E62: 建筑面积4万平方米，建成后年产速冻食品1万吨，包括生产加工车间、冷链食品成品仓库、线上线下销售管理用房、员工食堂及员工宿舍等。 | F62: 已完成 | G62: 2021-05-01 | H62: 30000 | I62: 15000 | J62: 20000 | K62: 贵州宜大鲜生供应链有限公司
A63: 56 | B63: 贵州万寿台酒业有限公司酒类包装加工生产线 | C63: 贵阳市乌当区 | D63: 制造业 | E63: 建设酒类包装生产线。总建筑面积28560平方米。 | F63: 已完成 | G63: 2020-12-01 | H63: 14100 | I63: 14100 | J63: 14100 | K63: 贵州万寿台酒业有限公司
A64: 57 | B64: 万顺堂药业生产线改扩建项目 | C64: 贵阳市乌当区 | D64: 制造业 | E64: 新增房屋建筑面积46380平方米，其中包括拟改扩建液体制剂生产线、保健食品生产线、消毒用品生产线；生产配套设施如仓储设施、企业技术研发中心；拟引进多套自动化、信息化设备设施。 | F64: 已完成 | G64: 2021-01-01 | H64: 10000 | I64: 10000 | J64: 10000 | K64: 贵州万顺堂药业有限公司
A65: 58 | B65: 乌当区新天药业股份有限公司中药配方颗粒建设项目 | C65: 贵阳市乌当区 | D65: 制造业 | E65: 按GMP要求建设饮片生产线、前提生产线、颗粒剂生产线，年产中药配方颗粒57000万袋。 | F65: 已完成 | G65: 2020-12-01 | H65: 17318 | I65: 8000 | J65: 8000 | K65: 贵阳新天药业股份有限公司
A66: 59 | B66: 贵阳温泉路神奇健康综合体 | C66: 贵阳市乌当区 | D66: 养老 | E66: 占地面积23200平方米，总建筑面积46400平方米，其中：住宅33400平方米，商业13000平方米。 | F66: 已完成 | G66: 2020-07-01 | H66: 56000 | I66: 30000 | J66: 30000 | K66: 贵阳神奇健康产业开发有限公司
A67: 60 | B67: 贵阳首个夜景观光园、文创街区 | C67: 贵阳市乌当区 | D67: 农业 | E67: 项目占地100亩，重点承接贵钢花鸟市场2021年搬迁后，200余经营户落地乌当区阿栗花卉市场继续经营。贵阳首个夜景公园、文创街区占地面积6666.7平方米（折合100亩）拟建设综合服务区（含只能温室大棚、展厅、办公用房、公寓式酒店、服务中心）、综合交易区、冷链仓储区以及停车区登功能区，同时配套建设电子商务、物流管理、电子结算等信息化平台等。 | F67: 已完成 | G67: 2020-06-01 | H67: 8000 | I67: 4000 | J67: 5000 | K67: 贵阳乌当两山园区服务管理有限公司
A68: 61 | B68: 贵州瀑布冷链食品中心（三期扩建） | C68: 贵阳市乌当区 | D68: 仓储物流 | E68: 建筑面积约9万平方米，低温冷藏库，层数8层，面积1.5万平方米，3层立体声车库，3000平方配套用房。 | F68: 已完成 | G68: 2020-06-01 | H68: 30000 | I68: 10000 | J68: 20000 | K68: 贵州瀑布冷链食品投资有限公司
A69: 62 | B69: 贵阳科福制药有限公司《君岐肠胃合剂》年产30000万瓶生产基地建设 | C69: 贵阳市乌当区 | D69: 制造业 | E69: 《君岐肠胃合剂》年产30000万瓶生产基地建设。 | F69: 已完成 | G69: 2020-06-01 | H69: 35000 | I69: 5000 | J69: 10000 | K69: 贵阳科福制药有限公司
A70: 63 | B70: 贵州三江项目配套路网工程 | C70: 贵阳市乌当区 | D70: 交通运输 | E70: 道路总长7.48公里。工程内容包括道路工程、桥涵工程、隧道工程、排水工程、照明工程、管线工程、土地及房屋征收、交通安全与管理设施、绿化、人行过街等附属工程。 | F70: 已完成 | G70: 2021-03-01 | H70: 198912 | I70: 100000 | J70: 20000 | K70: 贵阳市投资控股集团有限公司
A71: 64 | B71: 乌当区中天假日方舟棚户区改造项目 | C71: 贵阳市乌当区 | D71: 棚户区改造 | E71: 建筑面积553万平方米，建设居住区、体育公园区、商业休闲区及其他配套设施等。 | F71: 已完成 | G71: 2016-10-01 | H71: 3800000 | I71: 3800000 | J71: 200000 | K71: 中天城投乌当公司
A72: 65 | B72: 中高端大健康食品生产基地 | C72: 贵阳市乌当区 | D72: 制造业 | E72: 用地面积约20.92亩，总建筑面积月3万平方米。新建健康米粉、刺梨活性益生元产品、多肽化刺梨原汁灌装等生产线。 | F72: 已备案 | G72: 2022-06-01 | H72: 20000 | I72: 20000 | J72: 10000 | K72: 贵州千秋实业有限公司
A73: 66 | B73: 贵州威康新型建材产业园 | C73: 贵阳市乌当区 | D73: 制造业 | E73: 用地面积约40亩。一是新建1条年产100万吨的再生骨料生产线，配套标准化生产车间、封闭式堆场等；二是新建两条各50万方混凝土自动化生产线，实现搅拌、传送、储料等主要生产区域全封闭式生产，实现废水、废渣、废浆零排放，采用全过程信息化、智能化管理。根据市场需求，生产PC构件等装配式建筑产品。 | F73: 已备案 | G73: 2022-09-01 | H73: 12000 | I73: 12000 | J73: 2000 | K73: 贵州威康新型建材有限责任公司
A74: 67 | B74: 乌当区惠诚特色食品生态园 | C74: 贵阳市乌当区 | D74: 制造业 | E74: 净用地约140亩，项目以贵州特色食品为产业核心，通过产、研、学、文、体、旅、娱多业态的创新融合，打造集烘焙食品观光工厂、食品文化体验馆、贵州健康烘焙研究所、烘焙学院、主题公园、休闲配套为一体的现代化生态产业园。 | F74: 已备案 | G74: 2022-09-01 | H74: 80000 | I74: 80000 | J74: 2000 | K74: 贵阳高新惠诚食品有限公司
A75: 68 | B75: 白云区贵州嘉盈新能源智能化产业基地项目（二期） | C75: 贵阳市白云区 | D75: 制造业 | E75: 总建筑面积16万平方米，主要建设内容为新建生产厂房、办公楼、宿舍楼配套用房及其他附属设施等，新建锂离子电池生产线16条，购置生产设备680台（套），年产锂离子电池4GWH。 | F75: 已完成 | G75: 2021-02-01 | H75: 324500 | I75: 324500 | J75: 60000 | K75: 贵州嘉盈科技有限公司
A76: 69 | B76: 白云年产5万吨高性能聚合物改性材料生产线建设项目 | C76: 贵阳市白云区 | D76: 制造业 | E76: 建筑面积3.2万平方米，其中改建0.8万方，新建2.4万平方米；主要建设厂房、新建生产线10条、办公室、库房、职工宿舍及附属设施等。 | F76: 已完成 | G76: 2017年10月 | H76: 16000 | I76: 16000 | J76: 2502 | K76: 贵州凯科特材料有限公司
A77: 70 | B77: 白云富黔印刷包装加工基地建设项目 | C77: 贵阳市白云区 | D77: 制造业 | E77: 建筑面积37.9万平方米，标准厂房、办公楼、宿舍楼、展示中心、仓库及相关综合配套服务设施等。 | F77: 已完成 | G77: 2017-06-01 | H77: 60000 | I77: 60000 | J77: 20000 | K77: 贵州富黔包装印务有限公司
A78: 71 | B78: 白云区贵阳市垃圾焚烧发电建设项目 | C78: 贵阳市白云区 | D78: 生态环保项目 | E78: 占地152亩，垃圾焚烧发电3000吨/日，处理渗滤液400吨。 | F78: 已完成 | G78: 2020-09-01 | H78: 126000 | I78: 126000 | J78: 50000 | K78: 瀚蓝（贵阳）固废处理有限公司
A79: 72 | B79: 白云区中环路D3地块写字楼项目 | C79: 贵阳市白云区 | D79: 房地产业 | E79: 建筑面积4.8万平方米，写字楼、酒店、商业、绿化及安装充电基础设施等。 | F79: 已完成 | G79: 2020-03-01 | H79: 18000 | I79: 18000 | J79: 10000 | K79: 贵州梵荣置业有限公司
A80: 73 | B80: 白云区贵铝电解铝老工业区改造项目 | C80: 贵阳市白云区 | D80: 房地产业 | E80: 建筑面积360万平方米，新建商业、商务、住宅小区、配套设施用房、室内外环境工程、市政道路等。 | F80: 已完成 | G80: 2020-08-01 | H80: 3000000 | I80: 3000000 | J80: 350000 | K80: 贵州中天贵铝房地产开发有限公司
A81: 74 | B81: 利海米兰春天五期建设项目 | C81: 贵阳市白云区 | D81: 房地产业 | E81: 占地面积57541.78平方米，总建筑面积122924.78平方米，其中：住宅83297.74平方米，商业面积2740.35平方米，公共设施面积2920.74平方米，地下停车场面积33983.94平方米。 | F81: 已完成 | G81: 2018-12-01 | H81: 61462 | I81: 61462 | J81: 10000 | K81: 贵州合纵置业有限公司
A82: 75 | B82: 贵阳旭辉白沙关011、012号地块建设项目 | C82: 贵阳市白云区 | D82: 房地产业 | E82: 总建筑面积为261797.87平方米，其中计容面积：199791.99平方米、不计容面积62005.88平方米，建设内容主要包括：住宅、商业、住宅配套、地下停车库、电动汽车充电基础设施及其他配套设施等。011号地块总建筑面积为196764.49平方米，其中计容面积：149844.92平方米、不计容面积46919.57平方米，规划总户数1334户，投资额140945.4万元；012号地块总建筑面积为65033.38平方米，其中计容建筑面积：49947.07平方米、不计容建筑面积15086.31平方米，规划总户数468户，投资额46211.6万元。 | F82: 已完成 | G82: 2020-10-01 | H82: 187157 | I82: 187157 | J82: 53484 | K82: 贵州昌行房地产开发有限公司
A83: 76 | B83: 黑石头片区俊发城商住楼 | C83: 贵阳市白云区 | D83: 房地产业 | E83: 总用地面积103509平方米，总建筑面积235394平方米，建设内容为新建黑石头片区商品房及小区室外环境工程。 | F83: 已完成 | G83: 2013-06-01 | H83: 139678 | I83: 139678 | J83: 6000 | K83: 贵阳俊发房地产有限责任公司
A84: 77 | B84: 俊发城商业中心建设项目 | C84: 贵阳市白云区 | D84: 房地产业 | E84: 总用地面积47028平方米，总建筑面积168305平方米，建设内容为新建黑石头片区商品房及小区室外环境工程。 | F84: 已完成 | G84: 2018-01-01 | H84: 100358 | I84: 100358 | J84: 10000 | K84: 贵阳俊发房地产有限责任公司
A85: 78 | B85: 梵荣中环新第 | C85: 贵阳市白云区 | D85: 房地产业 | E85: 占地9393.5平方米，建筑面积4.8万方，建设商业用房、公寓式办公楼、酒店用房、地下车库、绿化及安装充电基础设施等配套设施。 | F85: 已完成 | G85: 2020-03-01 | H85: 24800 | I85: 24800 | J85: 5000 | K85: 贵州梵荣置业有限公司
A86: 79 | B86: 中天金融城国际社区A5地块 | C86: 贵阳市白云区 | D86: 房地产业 | E86: 该项目用地面积86879.4平方米，总建筑面积351288.47平方米，其中：住宅面积45000平方米，公寓及办公面积116220.5，商业面积50000平方米，酒店面积43300平方米，公共设施面积为1100平方米，地下车库及设备用房95667.97平方米。 | F86: 已完成 | G86: 2018-08-01 | H86: 204172 | I86: 204172 | J86: 8700 | K86: 贵阳融城房地产开发有限公司
A87: 80 | B87: 金科金茂九华粼云建设项目 | C87: 贵阳市白云区 | D87: 房地产业 | E87: 65.1平方米。商业面积5109.33平方米，地下车库及设备用房27396.05.最高建筑高度。 | F87: 已完成 | G87: 2018-09-01 | H87: 295000 | I87: 295000 | J87: 5000 | K87: 贵阳鑫科天辰房地产有限公司
A88: 81 | B88: 碧桂园云顶壹品建设项目 | C88: 贵阳市白云区 | D88: 房地产业 | E88: 占地12.26万方，总建筑面积32.01万方，建设平层公寓、LOFT公寓、商业、高层住宅小区等。 | F88: 已完成 | G88: 2018-04-01 | H88: 291209 | I88: 291209 | J88: 5000 | K88: 贵阳华远房地产开发有限公司
A89: 82 | B89: 华润置地悠山悦景 | C89: 贵阳市白云区 | D89: 房地产业 | E89: 项目总地总面积183538.22平方米总建筑面积339084.93平方米建设内容为新建商业、商务、住宅及小区、幼儿园、室内外环境工程及预留电基础设施等。 | F89: 已完成 | G89: 2019-10-01 | H89: 450000 | I89: 450000 | J89: 20000 | K89: 贵阳润林置业有限公司
A90: 83 | B90: 建发央著项目 | C90: 贵阳市白云区 | D90: 房地产业 | E90: 规划容积率2.9，规划总用地面积约89141.07平方米，计容用地面积约65779平方米，总建筑面积约253723平方米，计容建筑面积约190820平方米。 | F90: 已完成 | G90: 2020-11-01 | H90: 540000 | I90: 540000 | J90: 80000 | K90: 贵阳建发央著房地产开发有限公司
A91: 84 | B91: 观山湖区通源汽车文化广场（二期） | C91: 贵阳市观山湖区 | D91: 文化 | E91: 建筑面积67681.2平方米，建设内容为高端汽车品牌体验中心。 | F91: 已完成 | G91: 2021-01-01 | H91: 73606 | I91: 73606 | J91: 23500 | K91: 贵州通源投资集团有限公司
A92: 85 | B92: 好彩头贵阳生产基地项目 | C92: 贵阳市观山湖区 | D92: 制造业 | E92: 建设厂房及相关设施。 | F92: 已完成 | G92: 2021-01-01 | H92: 150000 | I92: 150000 | J92: 50000 | K92: 贵阳好彩头食品有限公司
A93: 86 | B93: 万科理想城 | C93: 贵阳市观山湖区 | D93: 房地产业 | E93: 住宅、商业及配套。 | F93: 已完成 | G93: 2018-06-01 | H93: 680000 | I93: 518103 | J93: 20000 | K93: 贵阳万科远通置业有限公司
A94: 87 | B94: 宇虹·万花城（南区） | C94: 贵阳市观山湖区 | D94: 房地产业 | E94: 总建筑面积495338.21平方米。其中主要有多层洋房、小高层洋房、高层住宅、公寓式办公及商业。 | F94: 已完成 | G94: 2018-07-01 | H94: 250000 | I94: 205452 | J94: 20000 | K94: 贵州虹通房地产开发有限公司
A95: 88 | B95: 盘江·未来中心 | C95: 贵阳市观山湖区 | D95: 房地产业 | E95: 总建筑面积466616.61平方米，主要包括：花园洋房、高层住宅、公寓、酒店、幼儿园、商业及配套设施等。 | F95: 已完成 | G95: 2018-08-01 | H95: 357397 | I95: 306034 | J95: 20000 | K95: 贵阳盘江置业有限公司
A96: 89 | B96: 美的广场 | C96: 贵阳市观山湖区 | D96: 房地产业 | E96: 总建筑面积为：33.51万平方米；由公寓、商业、酒店组成。 | F96: 已完成 | G96: 2017-06-01 | H96: 280000 | I96: 136994 | J96: 20000 | K96: 贵阳国龙置业有限公司
A97: 90 | B97: 德胜将军山新城 | C97: 贵阳市观山湖区 | D97: 房地产业 | E97: 建设总面积约125万平方米，主要有住宅、商业、酒店、公寓、钻石小镇。 | F97: 已完成 | G97: 2018-07-01 | H97: 1060000 | I97: 407203 | J97: 50000 | K97: 贵阳德盛置业有限公司
A98: 91 | B98: 中关村贵阳科技园观山湖大数据科技产业园 | C98: 贵阳市观山湖区 | D98: 新型基础设施 | E98: 仓储物流商贸市场、商业、办公、休闲、娱乐、消防、绿化、居住综合体及公建配套。 | F98: 已完成 | G98: 2015-05-01 | H98: 1500000 | I98: 399355 | J98: 50000 | K98: 贵阳观山湖大数据科技产业园建设有限公司
A99: 92 | B99: 万科翡翠天娇 | C99: 贵阳市观山湖区 | D99: 房地产业 | E99: A地块建筑面积：224017.3平方米，A地块建筑内容：A1-A6号楼、地下室及商业、幼儿园。 | F99: 已完成 | G99: 2019-04-01 | H99: 300000 | I99: 136212 | J99: 20000 | K99: 贵阳市金城汇置业有限公司
A100: 93 | B100: 西南上城博士府 | C100: 贵阳市观山湖区 | D100: 房地产业 | E100: 总建筑面积270203平方米，主要建筑内容包括住宅及商业，配套建设电气工程、给排水工程、消防工程、道路、广场工程、绿化景观工程等。 | F100: 已完成 | G100: 2019-04-01 | H100: 276488 | I100: 276488 | J100: 20000 | K100: 贵阳宝和房地产开发有限公司
A101: 94 | B101: 西南上城2013-54地块（澜山府） | C101: 贵阳市观山湖区 | D101: 房地产业 | E101: 住宅、商业及配套。 | F101: 已完成 | G101: 2019-08-01 | H101: 203147 | I101: 203147 | J101: 20000 | K101: 贵阳西南国际商贸城有限公司
A102: 95 | B102: 贵阳市观山湖区电竞小镇项目 | C102: 贵阳市观山湖区 | D102: 房地产业 | E102: 总用地面积190297.88平方米，可建设用地面积120890.6平方米，各类市政保护用地面积69407.28平方米。拟开发总建筑面积约580000平方米，其中计容建筑面积约448528平方米。项目建设内容包含：住宅、商业、商务、配套市政及公共服务设施、地下室等。 | F102: 已完成 | G102: 2020-11-01 | H102: 365000 | I102: 118159 | J102: 50000 | K102: 贵阳龙湖度势文化产业发展有限公司
A103: 96 | B103: 悦然里项目 | C103: 贵阳市观山湖区 | D103: 房地产业 | E103: 总建筑面积：56612.81平方米 ； 占地面积：88157.145 平方米。 其他：由商业及公建配套组成的商业街。 | F103: 已完成 | G103: 2020-01-01 | H103: 360189 | I103: 360189 | J103: 20000 | K103: 贵阳悦和房地产开发有限公司
A104: 97 | B104: 爱尔健康城 | C104: 贵阳市观山湖区 | D104: 房地产业 | E104: 占地面积：23462平方米；总建筑面积：152145.59平方米；其中爱尔眼科医院面积：29985.46平方米；贵州乌当农商银行办公室面积：24246.46平方米；办公式公寓写字楼面积：48885.78平方米；地下车库面积：35586.06平方米。 | F104: 已完成 | G104: 2020-09-01 | H104: 150000 | I104: 150000 | J104: 20000 | K104: 贵州爱尔视界房地产开发有限公司
A105: 98 | B105: 龙湖G（21）021地块项目 | C105: 贵阳市观山湖区 | D105: 房地产业 | E105: 规划中用地面积250146.17平方米，可计容用地面积192073.55平方米，不可计容用地面积58072.62平方米，总建筑面积约637183.876 平方米，其中计容建筑面积480183.867平方米，不计容建筑面积157000平方米，主要建设内容有住宅、商业、公租房、配套用房等。 | F105: 已完成 | G105: 2021-03-01 | H105: 618800 | I105: 618800 | J105: 30000 | K105: 贵阳卓峰置业有限公司
A106: 99 | B106: 中南▪ 紫云集项目（好彩头商业地块） | C106: 贵阳市观山湖区 | D106: 房地产业 | E106: 该项目总建筑规模约15万平方米，主要建设为住宅、商业、公建配套、幼儿园。 | F106: 已完成 | G106: 2021-01-01 | H106: 141598 | I106: 141598 | J106: 20000 | K106: 贵阳南彩置业有限公司
A107: 100 | B107: 红星天合广场·A区、C2区、E区、G区及教育配套设施 | C107: 贵阳市观山湖区 | D107: 房地产业 | E107: 总建筑面积约48万平方米，其中包含住宅31万平方米、公租房1.6万平方米、临街商业1.6万平方米、公建配套设施约1.4万平方米、小学约1.5万平方米、地下车库约10.9万平方米。 | F107: 已完成 | G107: 2021-01-01 | H107: 400000 | I107: 400000 | J107: 20000 | K107: 贵州红星谦和房地产开发有限公司
A108: 101 | B108: 中海映山湖城市综合体 | C108: 贵阳市观山湖区 | D108: 房地产业 | E108: 项目总用地面积259576.2平方米，其中净用地面积为185121.1平方米，折合约277.68亩。项目建设内容为住宅、商业、公寓、地下车库、公建配套等，总建筑面积约62.2万平方米，容积率不高于2.567，具体建设规模以规划部门最终确定的规划指标计算为准。 | F108: 已完成 | G108: 2020-07-01 | H108: 1010000 | I108: 1010000 | J108: 50000 | K108: 贵阳中海房地产有限公司
A109: 102 | B109: 国酒茅台广场 | C109: 贵阳市观山湖区 | D109: 房地产业 | E109: 总建筑面积632449.61平方米，计容面积436264.16平方米，不计容面积196185.45平方米。住宅216828.69平方米，商业41645.6平方米，办公81252.97平方米，酒文化博物馆10921.47平方米，酒店81887.98平方米，幼儿园2417.45平方米，公共服务配套设施1310平方米；停车场168087.66平方米，住宅首层架空3852.2平方米，住宅避难区430.1平方米，酒店避难区622平方米，办公避难区1450平方米，其他21743.47平方米。 | F109: 已完成 | G109: 2020-07-01 | H109: 400000 | I109: 400000 | J109: 50000 | K109: 贵州茅台酒厂（集团）置业投资发展有限公司
A110: 103 | B110: 金茂观山湖城市综合体 | C110: 贵阳市观山湖区 | D110: 房地产业 | E110: 建设规模：总用地面积为257032.1平方米，总建筑面积662794.87平方米，其中住宅面积：397444平方米，商业面积：26480.5平方米，公寓（办公性质）面积：44000平方米，公租房面积：19873平方米，公建配套面积：22542平方米，地下车库及设备用房面积：152455.37平方米。建设内容为新建房屋建设（包括住宅、公寓、公租房及商业、学校等附属配套设施）。 | F110: 已完成 | G110: 2020-07-01 | H110: 550000 | I110: 550000 | J110: 50000 | K110: 贵阳黔茂房地产开发有限公司
A111: 104 | B111: 中安电气科技产业园二期 | C111: 贵阳市观山湖区 | D111: 制造业 | E111: 总建筑面积约19万平方米，包含酒店用品生产厂房、日用品生产厂房、办公用房及其他配套设施等。 | F111: 已完成 | G111: 2020-05-01 | H111: 167840 | I111: 167840 | J111: 30000 | K111: 贵阳中安集团置业有限公司
A112: 105 | B112: 中安中高端消费品工贸电商产业园 | C112: 贵阳市观山湖区 | D112: 制造业 | E112: 中安电气科技产业园二期厂房约9万平方米，仓储物流区1万平方米。 | F112: 已完成 | G112: 2020-05-01 | H112: 280000 | I112: 280000 | J112: 30001 | K112: 贵阳中安集团置业有限公司
A113: 106 | B113: 中安农资工贸产业园 | C113: 贵阳市观山湖区 | D113: 制造业 | E113: 建设用地面积65亩，总建筑面积约7.5万平方米，建设生产厂房、仓储、农资产品展示展销中心、办公用房配套设施。 | F113: 已完成 | G113: 2020-05-01 | H113: 67000 | I113: 67000 | J113: 30002 | K113: 贵阳中安集团置业有限公司
A114: 107 | B114: 观山湖区盼盼产城融合项目 | C114: 贵阳市观山湖区 | D114: 制造业 | E114: 该项目占地面积382.89亩，建筑面积203002.5平方米，主要建设现代化标准生产车间、产品检测检验和研发中心及相关配套服务设施。 | F114: 已完成 | G114: 2021-11-01 | H114: 200000 | I114: 200000 | J114: 50000 | K114: 贵州盼盼食品有限公司
A115: 108 | B115: 华莱士烘培食品生产基地项目 | C115: 贵阳市观山湖区 | D115: 制造业 | E115: 总用地面积27463.28平方米，总建筑面积33026.87平方米，建设厂房、研发车间、仓库、综合办公用房等。主要设备有AMF面包生产线两条、生菜加工生产线一条、冻库制冷设备等，年产5000吨生菜加工、1.5亿个面包及5万吨冷冻食品配送。 | F115: 已备案 | G115: 2022-05-01 | H115: 30000 | I115: 30000 | J115: 10000 | K115: 贵州榕海食品有限公司
A116: 109 | B116: 安信捷产业基地项目 | C116: 贵阳市观山湖区 | D116: 新型基础设施 | E116: 本项总用地面积：40094.14平方米，其中可用建设用地面积：33957.76 平方米。拟建建筑面积：60746.53平方米(实际面积以规划为准)，主要建设6栋大楼，地下3200平方米(实际面积以规划为准)。 | F116: 已备案 | G116: 2022-03-01 | H116: 17000 | I116: 17000 | J116: 10000 | K116: 贵阳金星安信捷汽车服务有限公司
A117: 110 | B117: 观山湖区博艺幼儿园项目 | C117: 贵阳市观山湖区 | D117: 教育 | E117: 1.占地8289.30平方米（12.43亩），总建筑面积17807.14平方米。计容建筑面积8289.30平方米。 2.建筑层数：地下两层，地上4层 3.教学班级15个，每个班30人。 | F117: 已备案 | G117: 2022-05-01 | H117: 8515 | I117: 8515 | J117: 8515 | K117: 贵阳市观山湖区新星学校
A118: 111 | B118: 修文县首杨果蔬加工及配送项目 | C118: 贵阳市修文县 | D118: 农业 | E118: 建筑面积约4万平方米，建设市场综合服务区、综合交易区、蔬莱贮藏包装配送区、农产品信息服务网络建设、道路、停车场及相关配套设施。 | F118: 已完成 | G118: 2021-01-01 | H118: 37000 | I118: 0 | J118: 23164 | K118: 贵州首杨农产品初加工有限公司
A119: 112 | B119: 修文县峰瑞卓越荟城市综合体 | C119: 贵阳市修文县 | D119: 房地产业 | E119: 建筑面积11.18万平方米，建设公寓、会议中心、休闲娱乐、购物等及相关配套设施。 | F119: 已完成 | G119: 2021-05-01 | H119: 60000 | I119: 0 | J119: 15000 | K119: 贵阳峰瑞房地产开发有限公司
A120: 113 | B120: 修文县六广河大峡谷温泉旅游度假小镇建设项目 | C120: 贵阳市修文县 | D120: 旅游 | E120: 建设面积60万平方米，入户温泉地产，疗养温泉酒店，养生温泉宾馆及配套康养中心等。 | F120: 正在做前期工作 | G120: 2022-09-01 | H120: 100000 | I120: 0 | J120: 5000 | K120: 贵州黔贵六广河旅游开发有限公司
A121: 114 | B121: 贵州文创艺术孵化中心 | C121: 贵阳市修文县 | D121: 文化 | E121: 项目建设总规划占地面积100亩，包括文创产品制作区、体验区、展示区、文艺名家创意园等。现已建成文创产品展厅3000多平方的厂房，已投入1800多万元，预计明年成熟推出陶艺创意制作及展示项目。 | F121: 已完成 | G121: 2021-11-01 | H121: 15000 | I121: 1800 | J121: 500 | K121: 贵州盛世恒艺雕塑建材工程有限公司
A122: 115 | B122: 修文县荣和黔水坊年分装3000吨白酒建设项目 | C122: 贵阳市修文县 | D122: 制造业 | E122: 建设年产3000吨白酒生产项目。 | F122: 已完成 | G122: 2021-05-01 | H122: 25000 | I122: 0 | J122: 13247 | K122: 贵州王茅酱酒有限公司
A123: 116 | B123: 贵州浙商矿业集团有限公司修文县洒坪乡栗木山煤矿(兼并重组) | C123: 贵阳市修文县 | D123: 制造业 | E123: 技改45万吨/年生产系统。 | F123: 已完成 | G123: 2021-07-01 | H123: 31767 | I123: 0 | J123: 10000 | K123: 贵州浙商矿业集团有限公司
A124: 117 | B124: 阳光城缘溪（一期） | C124: 贵阳市修文县 | D124: 房地产业 | E124: 项目总占地面积260392平方米，总建筑面积436962平方米，建设内容包含住宅、商业等综合性社区，综合计容建筑面积274714平方米，不计容建筑面积162248平方米，主要建设有多层建筑、低层建筑、商业建筑及相关附属配套设施等。 | F124: 已完成 | G124: 2021-01-01 | H124: 220000 | I124: 0 | J124: 5000 | K124: 贵州光修悦房地产开发有限公司
A125: 118 | B125: 修文县德林居中医康养社区规划项目 | C125: 贵阳市修文县 | D125: 房地产业 | E125: 总用地面积67089.2平方米，总建筑面积278123平方米。 | F125: 已完成 | G125: 2020-01-01 | H125: 78000 | I125: 0 | J125: 5000 | K125: 贵州隆宇置业有限公司
A126: 119 | B126: 美林湾B区 | C126: 贵阳市修文县 | D126: 房地产业 | E126: 用地面积34784.994平方米，共建9栋高层住宅。总建筑面积190857.57平方米。 | F126: 已完成 | G126: 2020-07-01 | H126: 85000 | I126: 0 | J126: 15000 | K126: 贵州浩荣房地产开发有限公司
A127: 120 | B127: 修文县锦绣新城 | C127: 贵阳市修文县 | D127: 房地产业 | E127: 建筑面积21.44万平方米，包括公寓、会议中心、休闲娱乐、住宿、办公、餐饮、文化、交通、购物等及配套设施。 | F127: 已完成 | G127: 2020-10-01 | H127: 98000 | I127: 0 | J127: 15000 | K127: 贵州桥兴房地产开发有限公司
A128: 121 | B128: 贵州万隆印务有限公司智慧工厂建设项目 | C128: 贵阳市修文县 | D128: 制造业 | E128: 新增厂房建筑面积18000平方米，并配套建设道路、绿化、堡坎、环保设施、消防、安防监控等公用辅助工程。新增德国进口BHS卓越之星瓦楞纸板生产线1条、意高发宽幅柔性版印刷机1台套、日本新幸印刷联动线1条等生产设备，安装原纸智能物流系统、纸板智能物流系统、瓦楞纸板线管理系统、博思通纸品ERPV6.0系统等配套工艺设施。 | F128: 已完成 | G128: 2021-10-01 | H128: 10000 | I128: 0 | J128: 5000 | K128: 贵州万隆印务有限公司
A129: 122 | B129: 贵阳阳明文旅城项目 | C129: 贵阳市修文县 | D129: 房地产业 | E129: 项目占地面积163746.1平方米（XW(20）041住宅地块面积51439.5平方米、XW(20)041商业地块及XW（20）040地块面积182211.6平方米、商业及配套面积39457平方米，机动车停车位约1200个。 | F129: 已完成 | G129: 2021-09-01 | H129: 300000 | I129: 0 | J129: 30000 | K129: 贵州中卓文旅置业有限公司
A130: 123 | B130: 修文猕猴桃冷链仓储中心项目 | C130: 贵阳市修文县 | D130: 仓储物流 | E130: 优质猕猴桃生产国工及电商产业园。 | F130: 正在做前期工作 | G130: 2021-12-01 | H130: 20000 | I130: 0 | J130: 10000 | K130: 贵州世纪众天农业科技有限公司
A131: 124 | B131: 贵州修文兴达有限责任公司标准厂房建设项目 | C131: 贵阳市修文县 | D131: 制造业 | E131: 项目总占地面积73033平方米，修建标准化厂房13栋，行政办公楼1栋；总建筑面积73486平方米，建筑占地面积29213平方米，项目绿化面积14606.6平方米；项目容积率1.01，建筑密度40%，绿地率20%。 | F131: 正在做前期工作 | G131: 2021-12-01 | H131: 15000 | I131: 15000 | J131: 15000 | K131: 贵州修文兴达有限责任公司
A132: 125 | B132: 贵州省畜禽肉类冷链储备项目 | C132: 贵阳市修文县 | D132: 仓储物流 | E132: 建筑面积约22万平方米，建设冷库仓储区、冷链加工中区、冷链物流配送区、屠宰区、分割加工区、检验检疫区、无害化处理区等。 | F132: 正在做前期工作 | G132: 2021-12-01 | H132: 48855 | I132: 0 | J132: 48855 | K132: 贵州省农投公司
A133: 126 | B133: 修文县冷链净化烘干设备和保温材料生产线建设项目 | C133: 贵阳市修文县 | D133: 制造业 | E133: 建筑面积1.4万平方米，建设年产100万平方米保温板生产线及相关附属设施。 | F133: 正在做前期工作 | G133: 2022-09-01 | H133: 18000 | I133: 0 | J133: 18000 | K133: 贵州明杰环境科技有限公司
A134: 127 | B134: 贵州省贵阳修文县安宇矿业集团有限公司修文县六广镇三利煤矿 | C134: 贵阳市修文县 | D134: 制造业 | E134: 建设完成年产45万吨每年煤炭生产系统。 | F134: 正在做前期工作 | G134: 2022-09-01 | H134: 15000 | I134: 0 | J134: 15000 | K134: 安宇矿业集团有限公司
A135: 128 | B135: 修文县光伏电站项目 | C135: 贵阳市修文县 | D135: 能源 | E135: 建设规模400MWp，安装光伏板及相关配套设施，项目占地4600余亩。 | F135: 正在做前期工作 | G135: 2021-12-01 | H135: 40000 | I135: 0 | J135: 8000 | K135: 修文汇新能源有限公司
A136: 129 | B136: 贵州轮胎厂年产汽车内胎120万条及垫带120万条建设项目 | C136: 贵阳市修文县 | D136: 制造业 | E136: 项目拟规划占地面积约38.8亩，新建工程内胎及垫带生产车间、丁基内胎生产车间、炼胶车间、库房、厂区管理用房、宿舍楼、停车场、厂区道路、绿化、大门、围墙等辅助工程。 | F136: 正在做前期工作 | G136: 2021-12-01 | H136: 8000 | I136: 0 | J136: 8000 | K136: 贵州前进橡胶内胎公司
A137: 130 | B137: 贵州好一多乳业股份有限公司乳制品冷链物流系统建设 | C137: 贵阳市修文县 | D137: 制造业 | E137: 1、扩建巴氏奶日处理能力100吨冷库；2、在全省建立700个社区鲜奶配送站；3、新增1000台冰箱；4、新增1000台小区入户配送新能源保温电瓶车。 | F137: 正在做前期工作 | G137: 2021-12-01 | H137: 8700 | I137: 0 | J137: 8700 | K137: 贵州好一多乳业股份有限公司
A138: 131 | B138: 桂林力源粮油食品集团有限公司饲料加工项目 | C138: 贵阳市修文县 | D138: 制造业 | E138: 年加工36万吨饲料生产线建设项目。 | F138: 正在做前期工作 | G138: 2021-12-02 | H138: 12000 | I138: 0 | J138: 12000 | K138: 桂林力源粮油食品集团有限公司
A139: 132 | B139: 贵州轮胎股份有限公司技术中心研发实验室扩建项目 | C139: 贵阳市修文县 | D139: 制造业 | E139: 项目占地面积2416.82平方米，其中总建筑面积4602平方米。新建实验室用房和辅助构筑物，新购实验设备55台套，配备相应的消防、水、电、空气、风等辅助设施。 | F139: 正在做前期工作 | G139: 2021-12-02 | H139: 8800 | I139: 0 | J139: 8800 | K139: 贵州轮胎股份有限公司
A140: 133 | B140: 益海嘉里金龙鱼粮油食品股份有限公司 贵州米、面、油和中央厨房及物流配送中心项目 | C140: 贵阳市修文县 | D140: 仓储物流 | E140: 主要规划建设大米、小麦加工、食品粮油灌装、物流配送中心、中央厨房及厂区配套设施。 | F140: 正在做前期工作 | G140: 2021-12-02 | H140: 300000 | I140: 0 | J140: 50000 | K140: 益海嘉里金龙鱼粮油食品股份有限公司
A141: 134 | B141: 公园天街五期项目 | C141: 贵阳市修文县 | D141: 房地产业 | E141: 总建筑面积65002.4平方米。 | F141: 正在做前期工作 | G141: 2021-12-01 | H141: 20000 | I141: 0 | J141: 8000 | K141: 贵州唐扬房地产开发有限公司
A142: 135 | B142: 清镇市东方雨虹绿色建材生产基地及贵州区域总部建设项目 | C142: 贵阳市清镇市 | D142: 制造业 | E142: 建设沥青防水卷材、防水涂料、特种砂浆、德爱威涂料、建筑粉料、加气块板材等建筑新材料生产线及区域总部等。 | F142: 已摘地，正在组织手续办理相关工作 | G142: 2022-05-01 | H142: 120000 | I142: 40000 | J142: 40000 | K142: 北京东方雨虹防水材料有限公司
A143: 136 | B143: 清镇市年产1亿平方米高精度绿色CTP数码印版新材料项目 | C143: 贵阳市清镇市 | D143: 制造业 | E143: 项目建设厂房面积2万平方米，建成年产1亿平方米CTP数码印版生产线。 | F143: 已备案 | G143: 2022-06-01 | H143: 50000 | I143: 30000 | J143: 30000 | K143: 贵州靖帆科技有限公司
A144: 137 | B144: 贵州贵铝新材料股份有限公司15万吨再生铝项目 | C144: 贵阳市清镇市 | D144: 制造业 | E144: 建设锤式破碎生产线1条，反击式破碎生产线1条，脱漆炉1台，70t双室炉4台，35t保温炉1台，35t液压半连续铸造机1台，链式铸锭机1台，锯切机1台等。 | F144: 已备案 | G144: 2022-09-01 | H144: 80000 | I144: 30000 | J144: 30000 | K144: 贵州贵铝新材料股份有限公司
A145: 138 | B145: 年产50万吨再生沥青砼生产基地项目 | C145: 贵阳市清镇市 | D145: 制造业 | E145: 总建筑面积：1.43万平方米。包括办公楼、综合楼、研发楼、生产厂房等。 | F145: 已备案 | G145: 2022-07-01 | H145: 12000 | I145: 7000 | J145: 7000 | K145: 贵州省佰翔建设有限公司
A146: 139 | B146: 芯片封装、LED智能健康光源、SMT贴片(一期） | C146: 贵阳市清镇市 | D146: 制造业 | E146: 年生产LED灯丝2亿条，年生产LED健康灯具500万只。 | F146: 已备案 | G146: 2022-06-01 | H146: 10000 | I146: 10000 | J146: 10000 | K146: 贵州南凡半导体科技有限公司
A147: 140 | B147: 年产600万片（7寸-86寸）触摸屏及盖板项目 | C147: 贵阳市清镇市 | D147: 制造业 | E147: 年产600万片（7寸-86寸）触摸屏及盖板，包括盖板生产线、触摸屏生产线等。 | F147: 已备案 | G147: 2022-04-01 | H147: 15000 | I147: 6000 | J147: 6000 | K147: 贵州华合光电科技有限公司
A148: 141 | B148: 20万吨/年高铝微晶球（耐磨陶瓷）项目 | C148: 贵阳市清镇市 | D148: 制造业 | E148: 建设15万吨/年陶粒及20万吨/年高铝微晶球(耐磨陶瓷)生产车间、成品仓库及相关配套设施。 | F148: 已备案 | G148: 2022-07-01 | H148: 21736 | I148: 6500 | J148: 6500 | K148: 贵州高铝赣投新材料有限公司
A149: 142 | B149: 优品道清峯晓镇 | C149: 贵阳市清镇市 | D149: 房地产业 | E149: 总建筑面积230127.71平方米，分二期实施，包含征拆安置楼、商住楼、商业配套等。 | F149: 已完成 | G149: 2021-07-01 | H149: 80570 | I149: 20000 | J149: 20000 | K149: 贵阳品智置业有限公司
A150: 143 | B150: 中铁云湾综合体B组团 | C150: 贵阳市清镇市 | D150: 房地产业 | E150: 建筑面积23万平方米，建设商品住宅餐饮、购物、休闲文化等及相关配套设施。 | F150: 已备案 | G150: 2022-01-01 | H150: 210000 | I150: 80000 | J150: 80000 | K150: 贵州中铁诺德地铁置业有限公司
A151: 144 | B151: 清镇市百花社区林家山地块城市棚户改造项目（一号大院二期) | C151: 贵阳市清镇市 | D151: 棚户区改造 | E151: 总建筑面积约15万平方米，新建住宅及道路工程、绿化工程、管网工程等及相关配套设施。 | F151: 已备案 | G151: 2022-03-01 | H151: 88052 | I151: 40000 | J151: 40000 | K151: 清镇市住投公司
A152: 145 | B152: 益华湖湾二期建设项目 | C152: 贵阳市清镇市 | D152: 房地产业 | E152: 总建筑面积约3.16万平方米，新建住宅及道路工程、绿化工程、管网工程等及相关配套设施。 | F152: 已备案 | G152: 2022-03-01 | H152: 15399 | I152: 8000 | J152: 8000 | K152: 贵州益华房地产开发有限责任公司
A153: 146 | B153: 金茂水晶智慧新城项目（清镇市水晶集团片区棚户区改造项目（一期）） | C153: 贵阳市清镇市 | D153: 棚户区改造 | E153: 总建筑面积约160万平方米，新建住宅及道路工程、绿化工程、管网工程等及相关配套设施。 | F153: 已备案 | G153: 2022-03-01 | H153: 750000 | I153: 80000 | J153: 80000 | K153: 贵州筑茂房地产开发有限公司
A154: 147 | B154: 贵州中正汇民清洁能源有限公司清镇市花园路加油站 | C154: 贵阳市清镇市 | D154: 能源 | E154: 建筑总面积：1419.14平方米，包括站房、罩棚、加油机、油罐等。 | F154: 已备案 | G154: 2022-02-01 | H154: 8000 | I154: 6500 | J154: 6500 | K154: 贵州中正汇民清洁能源有限公司
A155: 148 | B155: 清镇市龙井火光互补农业光伏电站项目 | C155: 贵阳市清镇市 | D155: 能源 | E155: 建设光伏发电装机1OOMW及集电线路、220kV升压站1座等。 | F155: 已备案 | G155: 2022-04-01 | H155: 48500 | I155: 30000 | J155: 30000 | K155: 清镇市乌江水电新能源有限公司
A156: 149 | B156: 清镇市生活垃圾焚烧发电项目 | C156: 贵阳市清镇市 | D156: 生态环保项目 | E156: 规划建设2X500吨/日生活垃圾焚烧发电项目，并配套建设相关设施。 | F156: 已备案 | G156: 2022-07-01 | H156: 65000 | I156: 20000 | J156: 20000 | K156: 贵阳海创环境工程有限责任公司
A157: 150 | B157: 贵州合鼎智能制造项目一期 | C157: 贵阳市清镇市 | D157: 制造业 | E157: 项目建设智能终端生产线，建成以电子产品整机、配件、电子元器件等研发、集成、生产制造、销售为一体的智能终端产业园。 | F157: 已完成 | G157: 2021-10-01 | H157: 38000 | I157: 30000 | J157: 30000 | K157: 贵州中芯微电子科技有限公司
A158: 151 | B158: 清镇市年产6万吨热轧铝合金板材建设项目 | C158: 贵阳市清镇市 | D158: 制造业 | E158: 建设年产6万吨热轧铝合金板材生产线，新建厂房、办公楼及相关配套设施。 | F158: 已完成 | G158: 2021-10-01 | H158: 19800 | I158: 16000 | J158: 16000 | K158: 贵州前标铝业有限公司
A159: 152 | B159: 贵州华丰东盟产品交易中心建设项目 | C159: 贵阳市清镇市 | D159: 仓储物流 | E159: 该项目占地205亩，主要建设红酒庄、东盟农产品交易中心、东盟工艺品展示交易中心等。 | F159: 已完成 | G159: 2021-08-01 | H159: 55000 | I159: 27000 | J159: 27000 | K159: 贵阳清镇华丰市场置业有限公司
A160: 153 | B160: 贵州云宇建材批发中心项目 | C160: 贵阳市清镇市 | D160: 仓储物流 | E160: 建设智能门窗、锁具、窗帘等智能家居销售中心及配套服务设施。 | F160: 已完成 | G160: 2021-06-01 | H160: 40000 | I160: 15000 | J160: 15000 | K160: 贵州云宇房地产有限公司
A161: 154 | B161: 清镇市当代拾光里城市综合体建设项目 | C161: 贵阳市清镇市 | D161: 房地产业 | E161: 总建筑面积17.07万平方米，新建住宅、商业、停车场等。 | F161: 已完成 | G161: 2021-01-01 | H161: 90000 | I161: 35000 | J161: 35000 | K161: 贵阳摩码拓展置业有限公司
A162: 155 | B162: 清镇市云峰小镇城市综合体建设项目 | C162: 贵阳市清镇市 | D162: 房地产业 | E162: 总建筑面积：61.28万平方米，新建住宅、商业、停车场等。 | F162: 已完成 | G162: 2021-01-01 | H162: 300000 | I162: 44000 | J162: 44000 | K162: 贵阳佳旭房地产开发有限公司
A163: 156 | B163: 清镇市河堤村片区城市棚户区改造项目 | C163: 贵阳市清镇市 | D163: 棚户区改造 | E163: 建筑面积195.24万平方米。项目主要建设内容包括住宅、商业、辅助配套用房及其他附属设施等。 | F163: 已完成 | G163: 2020-03-01 | H163: 625882 | I163: 62000 | J163: 62000 | K163: 贵阳世和盛景房地产开发有限公司
A164: 157 | B164: 四季贵州片区城市棚户区改造椿樘府二期一组团二组团项目 | C164: 贵阳市清镇市 | D164: 棚户区改造 | E164: 改造户数2963户，总建筑面积347.01万平方米，新建住宅、商业、停车场等。 | F164: 已完成 | G164: 2020-07-01 | H164: 237984 | I164: 53000 | J164: 53000 | K164: 贵州省清镇市森伟房地产有限公司
A165: 158 | B165: 清镇利亚奥林花园项目 | C165: 贵阳市清镇市 | D165: 房地产业 | E165: 总建筑面积29.29万平方米，新建住宅、商业、停车场等。 | F165: 已完成 | G165: 2020-08-01 | H165: 187816 | I165: 21000 | J165: 21000 | K165: 贵州利亚房地产开发有限公司
A166: 159 | B166: 清镇侏罗纪恐龙文化科普特色小镇建设项目 | C166: 贵阳市清镇市 | D166: 旅游 | E166: 建筑面积为26万平方米，游客中心、古生物博物馆、文化街、美食街、温泉度假村、主题酒店等。 | F166: 已完成 | G166: 2019-10-01 | H166: 150000 | I166: 14000 | J166: 14000 | K166: 贵州清镇中润盛业文化旅游产业发展有限公司
A167: 160 | B167: 贵州省清镇市城北新区三号路南段A1地块城市棚户区改造项目 | C167: 贵阳市清镇市 | D167: 棚户区改造 | E167: 约237.7亩，总建筑面积68.6万平方米，项目主要建设内容包括住宅、商业、管理用房和辅助配套等。 | F167: 已完成 | G167: 2020-08-01 | H167: 310000 | I167: 12000 | J167: 12000 | K167: 贵州祥风时雨房地产开发有限公司
A168: 161 | B168: 清镇市老二中片区城市棚户区改造项目 | C168: 贵阳市清镇市 | D168: 棚户区改造 | E168: 改造户数2050户，总建筑面积43.96平方米，建设住宅、商业、管理用房及其他附属设施等。 | F168: 已完成 | G168: 2020-06-01 | H168: 156085 | I168: 12000 | J168: 12000 | K168: 贵州金益茂房地产开发有限公司
A169: 162 | B169: 清镇市新桥煤矿改扩建项目 | C169: 贵阳市清镇市 | D169: 能源 | E169: 项目设计生产规模45万吨/年，根据斜井开拓方式、中央并列式通风方式等进行项目兼并重组建设。 | F169: 已完成 | G169: 2021-07-01 | H169: 30000 | I169: 22000 | J169: 22000 | K169: 贵州永基矿业投资有限公司
A170: 163 | B170: 清镇市红稗地煤矿改扩建项目 | C170: 贵阳市清镇市 | D170: 能源 | E170: 项目设计生产规模45万吨/年，根据斜井开拓方式、中央并列式通风方式等进行项目兼并重组建设。 | F170: 已完成 | G170: 2021-07-01 | H170: 30000 | I170: 22000 | J170: 22000 | K170: 贵州元和天成能源有限责任公司
A171: 164 | B171: 广铝铝业有限公司清镇红花寨、白浪坝矿段铝土矿建设项目 | C171: 贵阳市清镇市 | D171: 能源 | E171: 年产90万吨铝土矿、赤铁矿、硫铁矿镓矿地下开采配套建设项目。 | F171: 已完成 | G171: 2021-06-01 | H171: 51186 | I171: 22000 | J171: 22000 | K171: 广铝铝业
A172: 165 | B172: 贵州磷化（集团）有限责任公司3万吨/年磷酸铁项目（息烽） | C172: 贵阳市息烽县 | D172: 制造业 | E172: 新建 3 万吨/年磷酸铁规模，包括建设原料储存及提纯厂房，废水循环处理设施，反应结晶分离厂房，干燥、焙烧、产品包装厂房，配套公用工程。 | F172: 已完成 | G172: 2021-12-01 | H172: 33186.57 | I172: 0 | J172: 33186.57 | K172: 贵州磷化（集团）有限责任公司
A173: 166 | B173: 贵阳开磷化肥有限公司40万吨/年湿法净化磷酸（85％H3PO4）项目 | C173: 贵阳市息烽县 | D173: 制造业 | E173: 建设规模：40 万吨/年。内容：新建一套40 万吨/年湿法净化磷酸（85％H3PO4）装置及配套公用工程设施、辅助生产设施、办公设施等。 | F173: 备案、环评已完成。 | G173: 2022-06-01 | H173: 85928 | I173: 0 | J173: 10000 | K173: 贵阳开磷化肥有限公司
A174: 167 | B174: 2×30万吨/年合成氨技术改造项目-合成氨二系统煤气化及安全环保技术升级改造工程 | C174: 贵阳市息烽县 | D174: 制造业 | E174: 对30万吨/年合成氨装置进行技术改造，将现有的间歇固定床煤气化炉技改为先进洁净煤气化技术（如纯氧连续气化等），配套新建空分装置。同时脱碳进行扩能改造，并对部分设备进行检测更换和安全环保提升。 | F174: 备案已办理；安评、环评、能评已完成编制，正在走相关程序。 | G174: 2022-06-01 | H174: 25455.96 | I174: 0 | J174: 10000 | K174: 贵州开磷息烽合成氨有限责任公司
A175: 168 | B175: 息烽县6万吨/年废矿物油绿色资源综合利用项目 | C175: 贵阳市息烽县 | D175: 制造业 | E175: 1、废矿物油绿色资源综合利用处理联合装置：6万吨/年废矿物油减压切割装置、5万吨/年溶剂精制装置；（一期工程）2、4万吨/年润滑油调和装置；（二期工程）3、系统配套储罐：24座 共18100立方米。4、公用工程：循环水场、变配电、污水预处理。5、辅助生产设施：控制室、办公楼、宿舍楼、食堂。 | F175: 备案已完成，企业正在开展规划设计方案、总图编制等工作。 | G175: 2022-08-01 | H175: 22922 | I175: 0 | J175: 1000 | K175: 贵州省贵晟环保科技有限公司
A176: 169 | B176: 年产3万吨锂电池电解液项目 | C176: 贵阳市息烽县 | D176: 制造业 | E176: 建设年产3万吨锂电池电解液项目，计划用地面积月约80亩，新建自动化电解液生产线两条，新建厂房、仓库、办公用房、研发楼。 | F176: 已完成项目备案、初设批复，已办结土地、林地手续，完成土地、林地补偿及涉及的房屋拆迁；二是项目规划设计总图、环评、安评、能评、水保方案等正在编制 | G176: 2022-01-01 | H176: 38000 | I176: 0 | J176: 10000 | K176: 贵州航盛锂能科技有限公司
A177: 170 | B177: 贵州安佑生物科技有限公司年产二十四万吨饲料生产项目 | C177: 贵阳市息烽县 | D177: 制造业 | E177: 用地约34.74亩，建设年产二十四万吨饲料生产线及配套工程，包括饲料生产车间、原料库、成品库、办公区、生活区及其他配套设施。 | F177: 已完成 | G177: 2021-11-01 | H177: 11669 | I177: 1000 | J177: 10000 | K177: 贵州安佑生物科技有限公司
A178: 171 | B178: 贵州天时佳利能源开发有限责任公司四万吨/年危险废物收集利用项目 | C178: 贵阳市息烽县 | D178: 制造业 | E178: 一.三万吨/年废矿物油综合（含精制）利用生产线一条，产品方案为润滑油基础油.塔顶油粗柴油及沥青浓油。主要建设内容包含产品及原料罐区和一套再生装置。二.0.2万吨/年废冷却液（乳化液）再生综合利用生产线一条，产品方案再生冷却液和脱模剂。三.0.8万吨/年废电瓶.煤焦油等其他废物收集储存库200平米。项目配套的化验室.配电房磅房..综合楼及相关安全.环保设施。 | F178: 已完成 | G178: 2021-10-01 | H178: 9248 | I178: 1000 | J178: 5000 | K178: 贵州天时佳利能源开发有限责任公司
A179: 172 | B179: 贵阳开磷化肥有限公司新建250万吨/年浮选装置 | C179: 贵阳市息烽县 | D179: 制造业 | E179: 250万吨/年；建设内容：新建一套250万吨/年浮选装置。 | F179: 已完成 | G179: 2021-08-01 | H179: 7931.76 | I179: 69 | J179: 2000 | K179: 贵阳开磷化肥有限公司
A180: 173 | B180: 3×20万吨/年高温石膏（年处理磷石膏90万吨）及配套石膏系列建材项目 | C180: 贵阳市息烽县 | D180: 制造业 | E180: 3*×20万吨/年高温石膏（年处理磷石膏90万吨）及配套石膏系列建材(一期1×20万吨/年高温石膏粉：二期2×20万吨/年高温石膏粉) 建设内容：土建、厂房、电力设施、设备等。 | F180: 已完成 | G180: 2018-11-01 | H180: 24091 | I180: 14416 | J180: 5000 | K180: 贵州开迪绿色建筑材料有限公司
A181: 174 | B181: 6万吨/年废矿物油绿色资源综合利用项目 | C181: 贵阳市息烽县 | D181: 生态环保项目 | E181: 包括废矿物油清洁回收处理、调和装置，以及相关配套设施，建成后具备年综合利用废矿物油6万吨生产能力。 | F181: 正在办理环评 | G181: 2022-06-01 | H181: 22000 | I181: 0 | J181: 1000 | K181: 贵州省贵晟环保科技有限公司
A182: 175 | B182: 年产18万吨饲料生产项目 | C182: 贵阳市息烽县 | D182: 制造业 | E182: 投资建设饲料生产线项目。 | F182: 已完成 | G182: 2021-11-01 | H182: 11669 | I182: 1000 | J182: 10000 | K182: 贵州安佑生物科技有限公司
A183: 176 | B183: 盛世名门 | C183: 贵阳市息烽县 | D183: 房地产业 | E183: 项目占地面积约120亩，建设内容为房地产开发建设，配套建设幼儿园和小学等。 | F183: 已完成 | G183: 2021-08-01 | H183: 110000 | I183: 60000 | J183: 20000 | K183: 贵州盛世福鑫房地产开发有限公司
A184: 177 | B184: 50万吨/年智能肥生产项目 | C184: 贵阳市息烽县 | D184: 制造业 | E184: 项目占地63.09亩，采用自主研发低温高压针状造粒工艺进行智能配方肥生产。项目分二期建设，一期建设项目投资17626万元，有20万吨/年配方肥生产线装置一套、原料库房、成品库房及配套公用工程和服务设施等。二期建设项目30602.77万元，有30万吨/年配方肥生产线装置一套、成品库房及配套公用工程等。 | F184: 已完成 | G184: 2021-06-18 | H184: 48228.77 | I184: 18000 | J184: 9000 | K184: 贵州西洋实业有限公司
A185: 178 | B185: 贵州宝能绿邦建材有限公司二期工程项目 | C185: 贵阳市息烽县 | D185: 制造业 | E185: 新建办公楼500平方米，生活楼（宿舍、食堂）500平方米，玻化微珠、珍珠岩一条线，年产5万吨石膏砂浆线10万吨/年，保温砂浆一条线3万吨，重钙粉一条线5万吨。新建厂房10000平方。 | F185: 已完成 | G185: 2021-04-01 | H185: 5780 | I185: 3053 | J185: 2727 | K185: 贵州宝能绿邦建材有限公司
A186: 179 | B186: 年产10万吨铝盐净水剂项目 | C186: 贵阳市息烽县 | D186: 制造业 | E186: 新建铝土矿聚铝生产线三条（聚合氯化铝净水剂是一种多羟基、多络合体的阳离子型无机高分子絮凝剂）建成后，聚合氯化铝净水剂年产达到8万吨，新建硫酸铝/铵明矾净水剂生产线一条（硫酸铝净水剂是一种絮凝剂，适用于提纯饮用水及污水处理设当中）产量达5万吨。 | F186: 已完成 | G186: 2021-09-01 | H186: 12306 | I186: 1454 | J186: 3000 | K186: 贵阳美斯特净水材料有限公司
A187: 180 | B187: 平安驛·贵州民俗文化体验地一期建设项目 | C187: 贵阳市息烽县 | D187: 旅游 | E187: 新建贵州民俗文化体验地一期建设（含民俗文化商业街区、温泉酒店、民宿）总用地面积：142605.8平方米，总建筑面积76387.22平方米。 | F187: 已完成 | G187: 2021-10-11 | H187: 60000 | I187: 60000 | J187: 3000 | K187: 贵州正平文化旅游发展有限公司
A188: 181 | B188: 贵阳市息烽十字街中央广场公共停车场及配套工程项目 | C188: 贵阳市息烽县 | D188: 房地产业 | E188: 用地面积约27155.12平方米（40.73亩），项目建设包含停车库，商业步行街，购物中心，市政广场、商务办公、健身中心等多功能复合业态，集娱乐、办公、商务、停车、休闲于一体，形成复合型商业业态价值链。总建筑面积约102658.1平方米，其中商业综合体约51829.88平方米，地下车库面积50828.22平方米，公共停车场停车位1508个。 | F188: 已完成 | G188: 2021-03-20 | H188: 78000 | I188: 78000 | J188: 30000 | K188: 息烽县印巷建设有限公司
A189: 182 | B189: 息烽县乡村振兴刺梨全产业链项目 | C189: 贵阳市息烽县 | D189: 农业 | E189: 增加刺梨原汁无菌充氮独立低温储罐1400吨 2.新建刺梨深加工厂房18366平方米 3.建设自动化灌装包装生产线四条 4.建设追溯管理系统 5.建设全透明可视化生产全程参观通道。 | F189: 已完成 | G189: 2021-10-26 | H189: 25040 | I189: 25040 | J189: 10000 | K189: 息烽都市现代农业扶贫开发投资有限公司
A190: 183 | B190: 贵州捷众森建材有限公司磷石膏新型墙体及抹灰砂浆材料 | C190: 贵阳市息烽县 | D190: 制造业 | E190: 新建年产150万平方新型石膏砌块生产线，新建年产40万吨抹灰石膏砂浆生产线，新建厂区配套设施与设备等。 | F190: 已完成 | G190: 2021-10-24 | H190: 7000 | I190: 7000 | J190: 2000 | K190: 贵州捷众森建材有限公司
A191: 184 | B191: 贵州磷化氟硅科技有限公司年产3万吨氟化氢/氢氟酸项目 | C191: 贵阳市息烽县 | D191: 制造业 | E191: 新建湿法磷酸配套3万吨/年氟化氢/氢氟酸生产系统及其附属设施。主要包括：生产装置10182平方米，控制楼1167平方米、罐区6286平方米以及公用工程。 | F191: 已完成 | G191: 2021-02-26 | H191: 29860 | I191: 29860 | J191: 1000 | K191: 贵州磷化氟硅科技有限公司
A192: 185 | B192: 团圆山加油站 | C192: 贵阳市息烽县 | D192: 能源 | E192: 建设用地面积约10亩，建设钢结构网架罩棚800平方米，办公营房300平方米，职工宿舍配套用房300平方米，生产辅助用房100平方米，并安装柴油、汽油、甲醇燃料储备罐及税控加油机、备用发电机等，同时建设消防及防雷防静电等设备设施。 | F192: 已完成 | G192: 2021-08-15 | H192: 6200 | I192: 6200 | J192: 1000 | K192: 贵州昊能驰贸易有限公司
A193: 186 | B193: 息烽县中医院停车场建设项目 | C193: 贵阳市息烽县 | D193: 市政设施项目 | E193: 新建立体停车楼，用地面积2345.80平方米；总建筑面积8947.51平方米；总停车位数217个。 | F193: 已完成 | G193: 2021-10-24 | H193: 7616 | I193: 7616 | J193: 5000 | K193: 贵阳智慧停车产业投资发展有限公司
A194: 187 | B194: 贵阳北湾郡 | C194: 贵阳市息烽县 | D194: 房地产业 | E194: 该项目规划用地面积为25036.7平方米，规划净用地面积为23527.9平方米，公共设施用地面积为1508.8平方米，总建筑面积为94613.74平方米，地上建筑面积为70333.84平方米，其中商业面积为1578.3平方米，农贸市场为800平方米，住宅为66840.54平方米，售楼中心为800平方米，值班室15平方米，社区邮政服务站为50平方米，社区居委会为110平方米，社区文化图书室为50平方米，物业管理用房为90平方米，地下建筑面积为24279.9平方米，建筑占地面积为4939.7平方米，绿地面积为8258.29平方米，容积率为2.99，建筑密度为21.0％，绿地率为35.1％，住宅户数为544户，人口规模为1904人，停车位为575个。 | F194: 已完成 | G194: 2020-08-01 | H194: 30000 | I194: 5000 | J194: 8000 | K194: 贵州鸿晖置业开发有限公司
A195: 188 | B195: 贵阳市息烽县“御山邸”建设项目 | C195: 贵阳市息烽县 | D195: 房地产业 | E195: 总建筑面积：257821.6.其中，新建住宅建筑177578平方米，商业建筑24471平方米，配套幼儿园3301平方米，物业用房810平方米，地下停车场建筑面积：51661.6平方米，配套道路、污水管网、给排水、绿化等相关基础设施建设。 | F195: 已完成 | G195: 2019-10-01 | H195: 80000 | I195: 70000 | J195: 10000 | K195: 息烽县城投房地产开发有限公司
A196: 189 | B196: 息烽碧桂园 | C196: 贵阳市息烽县 | D196: 房地产业 | E196: 占地面积为64416.92平方米。建设规模为162654.33平方米，其中地下建筑面积33821.49平方米，地上建筑面积128832.84平方米，项目内规划道路面积7094.02平方米，商业面积4510平方米，绿化面积22545.922平方米，住宅建筑面积122502.63平方米，新建住宅户数877户。项目地上部分包括住宅、商业、公共配套设施，地下部分包括车库及设备用房、配套污水管网、给排水、绿化等相关基础设施建设。（重大项目：建筑面积16.27万平方米，建设住宅、餐饮、文化、购物、交通等及相关配套设施) | F196: 已完成 | G196: 2019-08-01 | H196: 83100 | I196: 25000 | J196: 12000 | K196: 息烽碧庭园房地产开发有限公司
A197: 190 | B197: 开阳碧桂园 | C197: 贵阳市开阳县 | D197: 房地产业 | E197: 项目分两期建设。一期：总建筑面积为83865.88平方米，其中计容建筑面积：66584平方米，（含商业、住宅、居委会、物管用房、社区服务站等），不计容建筑面积为：17281.88平方米 （含地下车库、地下设备用房、架空公共空间）及其它配套附属设施。二期：总建筑面积111898.12平方米，其中计容建筑面积为：90480平方米，（含商业、住宅、居委会、物管用房、社区服务站等），不计容建筑面积21418.12平方米 （含地下车库、地下设备用房、架空公共空间）及其它配套附属设施。 | F197: 已完成 | G197: 2021-11-01 | H197: 85000 | I197: 85000 | J197: 25000 | K197: 开阳新天地置业有限公司
A198: 191 | B198: 谦翔•樾宸 | C198: 贵阳市开阳县 | D198: 房地产业 | E198: 项目建设总规模143223.01平方米，分为两期实施。一期工程建设规模约47685.58平方米，计容面积36103.91平方米（其中：住宅32538.52平方米、商业617.07平方米、幼儿园2561.85平方米、居委会办公用房190平方米、社区文化图书室50平方米、社区邮政用房20平方米、治安室15平方米、物业用房114.7平方米）；二期工程建设规模约95537.43平方米，计容面积74194.09平方米（其中：住宅71047.01平方米、商业2819.55平方米、物业用房277.53平方米、便利店50平方米）。 | F198: 已完成 | G198: 2021-11-01 | H198: 42966.903 | I198: 42966.903 | J198: 15000 | K198: 开阳谦翔置业有限公司
A199: 192 | B199: 英豪.紫江天城 | C199: 贵阳市开阳县 | D199: 房地产业 | E199: 总建筑面积79726.43平方米，其中计容建筑面积62957.16平方米，不计容建筑面积16769.27平方米；容积率2.0（小于等于2）；建筑密度29.9％（小于等于30％）；绿地率30％（大于等于30％）；住宅户数450户；停车位495个（住宅1个/户，商业0.7个/户）：地上停车位44个，地下停车位451个。 | F199: 已完成 | G199: 2021-08-01 | H199: 20000 | I199: 20000 | J199: 8000 | K199: 贵阳市英豪房地产开发有限公司
A200: 193 | B200: 年产10万吨(27.5%浓度)双氧水项目 | C200: 贵阳市开阳县 | D200: 制造业 | E200: 项目占地135亩，总投资2亿元，设备购买3500万元；建成后年产值1亿元，实现税收1925万元。 | F200: 已完成 | G200: 2020-08-01 | H200: 20000 | I200: 20000 | J200: 1000 | K200: 贵州赛邦科技发展有限公司
... 2320 more rows
